[Event "85th Tata Steel Challengers 2023"]
[Site "Wijk aan Zee"]
[Date "2023.01.20"]
[Round "10.6"]
[White "Mishra, Abhimanyu"]
[Black "Vaishali, Rameshbabu"]
[Result "1/2-1/2"]
[ECO "B40"]
[WhiteElo "2559"]
[BlackElo "2425"]
[Annotator "TA"]
[PlyCount "155"]
[EventDate "2023.01.10"]
[EventType "tourn"]
[EventCountry "NED"]
[SourceTitle "playchess.com"]
[Source "ChessBase"]
[SourceQuality "1"]
[TimeControl "40/6000+30:30/3000+30:900+30"]

{[%evp 9,155,2,16,13,17,17,11,0,0,0,68,30,13,15,6,7,12,8,25,0,25,0,21,20,27,-10,7,11,8,10,16,14,15,13,19,18,23,0,-3,-24,0,-34,4,0,0,-1,0,0,6,2,8,0,4,0,0,-38,7,0,2,0,0,0,0,0,3,0,0,0,0,0,0,0,8,8,8,8,15,15,15,12,19,8,9,9,9,9,9,9,28,8,8,8,47,8,8,8,8,0,3,3,8,8,8,0,0,0,8,3,3,0,8,3,3,0,8,3,18,3,40,0,0,0,0,0,0,0,0,0,0,0,0,0,0,0,0,0,0,0,0,0,3,0,0,0,0,0,3,3]} 1. e4 {[%emt 0:00:01]} c5 {[%emt 0:00:12]} 2. Nf3 {[%emt 0:00:06]} e6 {[%emt 0:00:12]} 3. c3 {[%emt 0:00:32]} Nf6 {[%emt 0:00:46]} 4. Bd3 {[%emt 0:00:12]} Nc6 {[%emt 0:01:20]} 5. Bc2 {[%emt 0:01:49]} d5 {[%emt 0:14:40]} 6. e5 {[%emt 0:01:24] B40: Sicilian: 2...e6, Unusual lines.} Nd7 {[%emt 0:00:05]} 7. d4 {[%emt 0:00:18]} b6 {[%emt 0:00:19]} 8. O-O {[%emt 0:00:59][%cal Oc3c4]} Ba6 {[%emt 0:02:58]} 9. Re1 {[%emt 0:01:27]} cxd4 {[%emt 0:08:54]} ({Black should try} 9... Rc8 $11) 10. cxd4 {[%emt 0:04:56]} Nb4 {[%emt 0:02:07]} 11. Ba4 {[%emt 0:13:48] [#]} Nd3 $146 {[%emt 0:01:17]} ({Predecessor:} 11... Be7 12. a3 Nd3 13. Re3 Nxc1 14. Qxc1 Rc8 15. Rc3 O-O 16. Nbd2 b5 17. Bd1 Rxc3 18. Qxc3 {½-½ Korolchuk,N (2235)-Kozak,M (2192) Novy Bor op 3rd 2012 (8)}) 12. Re3 {[%emt 0:04:27]} Nxc1 {[%emt 0:00:59]} 13. Qxc1 {[%emt 0:00:03]} Rc8 {[%emt 0:00:04]} 14. Qd1 {[%emt 0:04:00]} (14. Rc3 $5) 14... g6 {[%emt 0:07:49]} (14... b5 $5 {[%cal Rb5a4]} 15. Bc2 Be7 $11) 15. Nc3 {[%emt 0:02:01]} Bh6 {[%emt 0:00:16]} 16. Re1 {[%emt 0:00:25][%cal Oc3d5]} O-O {[%emt 0:00:20]} 17. Bb5 {[%emt 0:10:11] [#]} Rxc3 $1 {[%emt 0:02:47][%mdl 64] Remove Defender} 18. Bxa6 {[%emt 0:01:24]} Rc7 {[%emt 0:00:07]} 19. Qe2 {[%emt 0:06:30]} Qe7 {[%emt 0:01:32]} 20. h4 {[%emt 0:06:56]} Nb8 {[%emt 0:01:58]} 21. Bd3 {[%emt 0:00:49]} Nc6 {[%emt 0:00:33][%cal Bb8c6,Bc6a5,Ba5c4][%mdl 32]} 22. a3 {[%emt 0:03:28] Prevents Nb4.} Na5 {[%emt 0:02:54]} 23. Ba6 {[%emt 0:04:38]} Rb8 {[%emt 0:07:40][%cal Ob6b5]} 24. g3 {[%emt 0:08:10]} Nc4 {[%emt 0:21:48]} 25. Bb5 {[%emt 0:03:50]} Ra8 {[%emt 0:05:10]} (25... a6 $5 {[%cal Ra6b5]} 26. Bxc4 (26. Bxa6 b5 $15) 26... Rxc4 $11) 26. Nh2 {[%emt 0:06:15]} a6 {[%emt 0:01:43]} 27. Bxc4 {[%emt 0:00:09]} Rxc4 {[%emt 0:13:06]} 28. Rad1 {[%emt 0:02:30]} b5 {[%emt 0:01:05]} 29. Ng4 {[%emt 0:00:51]} Bg7 {[%emt 0:00:02]} 30. Qf3 {[%emt 0:07:51]} h6 {[%emt 0:04:40]} 31. Qf4 {[%emt 0:02:05]} Kh7 {[%emt 0:00:15]} 32. h5 {[%emt 0:03:04]} Qg5 {[%emt 0:01:48]} 33. hxg6+ {[%emt 0:01:08]} Qxg6 {[%emt 0:00:10]} 34. Kg2 {[%emt 0:04:16]} Rc2 {[%emt 0:04:00]} 35. Rh1 {[%emt 0:02:48] With the idea Rde1.} Qe4+ {[%emt 0:02:07]} 36. Qxe4+ {[%emt 0:00:08]} dxe4 {[%emt 0:00:02]} 37. Rde1 {[%emt 0:01:36]} Rxb2 {[%emt 0:01:57]} 38. Rxe4 {[%emt 0:00:30][%cal Og4h6]} Rd8 {[%emt 0:00:58]} 39. Rf4 {[%emt 0:02:58]} Rd7 {[%emt 0:00:09]} 40. d5 {[%emt 0:01:16]} exd5 {[%emt 0:00:56]} 41. Nf6+ {[%emt 0:16:21]} Bxf6 {[%emt 0:00:07]} 42. Rxf6 $11 {[%emt 0:00:13][%cal Oe5e6][%mdl 4096] Endgame aiming for e6! KRR-KRR} Kg7 {[%emt 0:09:23]} 43. Rxa6 {[%emt 0:15:48]} Re2 {[%emt 0:04:35]} 44. Rh5 {[%emt 0:01:37]} Re7 {[%emt 0:07:13]} 45. Rb6 {[%emt 0:01:59]} R2xe5 {[%emt 0:00:21]} 46. Rxe5 {[%emt 0:00:10]} Rxe5 {[%emt 0:00:02]} 47. Rxb5 {[%emt 0:00:08] KR-KR} Kf6 {[%emt 0:02:38]} 48. Kf3 {[%emt 0:07:00]} Kg5 {[%emt 0:11:32]} 49. a4 {[%emt 0:00:40] And now a5 would win.} f5 $1 {[%emt 0:00:24]} 50. a5 {[%emt 0:02:31] Threatens to win with a6.} Re4 {[%emt 0:00:19]} 51. Rxd5 {[%emt 0:02:04] Black must now prevent Rd8.} Ra4 {[%emt 0:00:03]} 52. Kg2 {[%emt 0:01:36]} Ra2 {[%emt 0:00:29]} 53. Kf3 {[%emt 0:01:13]} Ra3+ {[%emt 0:01:27]} 54. Ke2 {[%emt 0:00:23]} h5 {[%emt 0:00:50]} 55. Rc5 {[%emt 0:00:22]} Kg4 {[%emt 0:01:00]} 56. Kd2 {[%emt 0:00:30]} Ra2+ {[%emt 0:04:31]} 57. Ke3 {[%emt 0:00:43]} Kg5 {[%emt 0:00:32]} 58. Rb5 {[%emt 0:01:53]} Kg4 {[%emt 0:00:54]} 59. Rd5 {[%emt 0:00:12]} Kg5 {[%emt 0:00:28]} 60. Rc5 {[%emt 0:00:06]} Kg4 {[%emt 0:00:10]} 61. Rd5 {[%emt 0:04:09]} Kg5 {[%emt 0:00:07]} 62. f3 {[%emt 0:00:05]} Ra3+ {[%emt 0:01:30]} 63. Ke2 {[%emt 0:01:03]} Ra2+ {[%emt 0:01:38]} 64. Kd3 {[%emt 0:00:00]} Ra3+ {[%emt 0:00:00] The position is equal.} 65. Kc4 {[%emt 0:00:00]} Rxf3 {[%emt 0:00:00]} 66. Rd3 {[%emt 0:00:00]} Rf1 {[%emt 0:00:00]} 67. Rd4 {[%emt 0:00:00]} Rg1 {[%emt 0:00:00]} 68. Rd8 {[%emt 0:00:00]} Rc1+ {[%emt 0:00:00]} 69. Kb5 {[%emt 0:00:00]} Rb1+ {[%emt 0:00:00]} 70. Kc6 {[%emt 0:00:00]} Rc1+ {[%emt 0:00:00]} 71. Kd6 {[%emt 0:12:47]} Ra1 {[%emt 0:10:49]} 72. Rg8+ {[%emt 0:00:26]} Kf6 {[%emt 0:00:08]} 73. Ra8 {[%emt 0:00:17]} f4 {[%emt 0:02:06][%mdl 64] [#] Deflection} 74. gxf4 {[%emt 0:00:56]} h4 {[%emt 0:00:08]} 75. a6 {[%emt 0:00:53]} h3 {[%emt 0:00:06] Hoping for ...Kg7.} 76. Rh8 {[%emt 0:01:00]} ({Don't blunder} 76. Rf8+ $2 Kg7 77. Rf5 Rxa6+ 78. Ke7 h2 $19) 76... Rxa6+ {[%emt 0:00:08]} 77. Kd5 {[%emt 0:00:03]} Kf5 {[%emt 0:00:07]} 78. Rxh3 {[%emt 0:00:09] Weighted Error Value: White=0.08 (flawless) /Black=0.07 (flawless)} 1/2-1/2

[Event "85th Tata Steel Challengers 2023"]
[Site "Wijk aan Zee"]
[Date "2023.01.20"]
[Round "10.7"]
[White "Roebers, Eline"]
[Black "Pechac, Jergus"]
[Result "1/2-1/2"]
[ECO "C60"]
[WhiteElo "2361"]
[BlackElo "2637"]
[Annotator "TA"]
[PlyCount "51"]
[EventDate "2023.01.10"]
[EventType "tourn"]
[EventCountry "NED"]
[SourceTitle "playchess.com"]
[Source "ChessBase"]
[SourceQuality "1"]
[TimeControl "40/6000+30:30/3000+30:900+30"]

{[%evp 11,51,19,22,23,14,18,20,18,22,3,27,22,40,10,9,4,41,39,36,16,22,0,0,0,0,0,0,0,0,0,0,0,7,0,0,0,0,0,8,8,4,8]} 1. e4 {[%emt 0:00:03]} e5 {[%emt 0:00:09]} 2. Nf3 {[%emt 0:00:04]} Nc6 {[%emt 0:00:07]} 3. Bb5 {[%emt 0:00:03]} Nge7 {[%emt 0:00:08]} 4. d4 {[%emt 0:00:41]} Nxd4 {[%emt 0:00:09]} 5. Nxd4 {[%emt 0:00:05]} exd4 {[%emt 0:00:08]} 6. Qxd4 {[%emt 0:00:08]} Nc6 {[%emt 0:00:09]} 7. Qe3 {[%emt 0:00:32] C60: Ruy Lopez: Unusual Black 3rd moves and 3...g6.} Be7 {[%emt 0:00:09]} 8. O-O {[%emt 0:01:31]} O-O {[%emt 0:00:08]} 9. Nc3 {[%emt 0:04:20][%cal Bb1c3,Bc3d5,Bd5e3][%mdl 32]} Re8 {[%emt 0:00:34]} 10. Rd1 {[%emt 0:01:31]} d6 {[%emt 0:00:46]} 11. Nd5 {[%emt 0:07:27] [#]} Bh4 $146 {[%emt 0:00:23]} (11... Bd7 {keeps more tension.} 12. Qc3 Bh4 13. f3 Ne7) ({Predecessor:} 11... Bd7 12. Bf1 Ne5 13. a4 Bh4 14. g3 c6 15. Nf4 Be7 16. a5 Qc7 17. Qc3 Bg4 {½-½ Blomqvist,E (2550)-Nihal,S (2648) Fagernes op 2022 (8)}) 12. Bf1 {[%emt 0:11:49]} (12. g3 $5 {[%cal Rg3h4]} Bf6 13. Rb1 $14) 12... Ne7 {[%emt 0:02:04]} 13. Qb3 {[%emt 0:03:01]} c6 {[%emt 0:13:30]} 14. Ne3 {[%emt 0:02:36]} Qc7 {[%emt 0:01:45]} 15. c3 {[%emt 0:04:24]} Be6 {[%emt 0:05:32] The position is equal.} 16. Qc2 {[%emt 0:01:55]} d5 {[%emt 0:05:29]} 17. exd5 {[%emt 0:01:37]} Nxd5 {[%emt 0:05:01]} 18. Nxd5 {[%emt 0:05:00]} Bxd5 {[%emt 0:00:15]} 19. Be3 {[%emt 0:02:31]} h6 {[%emt 0:03:43]} 20. Rd2 {[%emt 0:02:07]} b6 {[%emt 0:01:54]} 21. Rad1 {[%emt 0:04:18][%cal Ba1d1,Bd1d2,Bd2d8][%mdl 32]} Rad8 {[%emt 0:00:06]} (21... Bxa2 $2 22. Rd7 Qc8 23. b3 $18) 22. g3 {[%emt 0:06:38]} Bf6 {[%emt 0:01:23]} 23. Bg2 {[%emt 0:00:41]} Bxg2 {[%emt 0:00:11]} (23... Bxa2 $2 24. Rxd8 Rxd8 25. Rxd8+ Qxd8 26. b3 $18 (26. Bxc6 Bd5 $11)) 24. Kxg2 {[%emt 0:00:15]} Rxd2 {[%emt 0:00:09]} 25. Rxd2 {[%emt 0:00:09]} Rd8 {[%emt 0:00:05]} 26. Rxd8+ {[%emt 0:00:28] Weighted Error Value: White=0.06 (flawless) /Black=0.05 (flawless)} 1/2-1/2

[Event "85th Tata Steel Challengers 2023"]
[Site "Wijk aan Zee"]
[Date "2023.01.27"]
[Round "11.1"]
[White "Donchenko, Alexander"]
[Black "Tabatabaei, M. Amin"]
[Result "1-0"]
[ECO "A17"]
[WhiteElo "2627"]
[BlackElo "2686"]
[Annotator "TA"]
[PlyCount "79"]
[EventDate "2023.01.10"]
[EventType "tourn"]
[EventCountry "NED"]
[SourceTitle "playchess.com"]
[Source "ChessBase"]
[SourceQuality "1"]
[TimeControl "40/6000+30:30/3000+30:900+30"]

{[%evp 9,79,0,8,0,0,7,4,-3,13,7,0,2,4,9,18,8,14,8,72,34,26,29,17,18,18,14,18,16,53,54,59,60,60,46,60,49,39,43,43,43,83,78,119,140,256,254,254,254,254,245,243,249,249,243,239,235,550,563,539,495,535,533,713,635,659,647,1070,1050,1102,1089,1070,1043]} 1. Nf3 {[%emt 0:00:04]} Nf6 {[%emt 0:01:33]} 2. c4 {[%emt 0:00:17]} e6 {[%emt 0:00:07]} 3. Nc3 {[%emt 0:00:22]} d5 {[%emt 0:00:21]} 4. e3 {[%emt 0:00:17]} Bd6 {[%emt 0:06:31]} 5. b3 {[%emt 0:00:47]} O-O {[%emt 0:05:53]} 6. Bb2 {[%emt 0:00:26] A17: English Opening: 1...Nf6 with ...Bb4.} Re8 {[%emt 0:00:22]} 7. Nb5 {[%emt 0:06:23]} Be7 {[%emt 0:19:19]} 8. Be5 {[%emt 0:03:45] The position is equal.} Na6 {[%emt 0:00:21]} 9. Be2 {[%emt 0:03:51]} c6 {[%emt 0:01:48]} 10. Nc3 {[%emt 0:00:30]} Nc5 {[%emt 0:02:25]} 11. Qc2 {[%emt 0:04:31]} Ncd7 {[%emt 0:04:43]} 12. Bg3 {[%emt 0:01:22] [#]} dxc4 $146 {[%emt 0:00:19]} ({Predecessor:} 12... a6 13. h3 Bf8 14. O-O b5 15. d4 Bb7 16. Rfd1 Bb4 17. Bh2 Qa5 18. Rdc1 Ba3 {0-1 Ventura Bolet,M (2223)-Moussard,J (2684) Sitges Sunway op 9th 2022 (2)}) 13. bxc4 {[%emt 0:01:51]} b6 {[%emt 0:00:39]} (13... Bb4 $11 {remains equal.}) 14. h3 {[%emt 0:10:13] White is more active.} Bb4 {[%emt 0:06:35]} 15. Bh2 {[%emt 0:04:44]} Bb7 {[%emt 0:06:58]} 16. O-O {[%emt 0:10:34]} Qe7 {[%emt 0:00:40]} 17. d4 {[%emt 0:02:01]} Rac8 {[%emt 0:03:37]} 18. Rfd1 {[%emt 0:07:18]} Bxc3 {[%emt 0:03:16]} 19. Qxc3 {[%emt 0:00:42]} c5 {[%emt 0:02:18]} 20. a4 {[%emt 0:01:30]} Ne4 {[%emt 0:04:19]} 21. Qb3 {[%emt 0:04:05]} cxd4 {[%emt 0:05:24]} 22. exd4 {[%emt 0:00:27]} Nd6 {[%emt 0:00:28]} 23. Rac1 {[%emt 0:07:02][%cal Oa4a5]} Nf5 {[%emt 0:03:31]} 24. a5 {[%emt 0:01:33]} Red8 {[%emt 0:00:19]} 25. Qb1 {[%emt 0:08:49][%cal Oc4c5] White leaves nothing to chance now.} (25. g4 {is interesting.} Nh4 26. Nxh4 Qxh4 27. Ra1) 25... h6 {[%emt 0:06:45] [#]} 26. c5 $1 {[%emt 0:05:58][%cal Rc5b6]} Bxf3 {[%emt 0:02:27]} (26... Nf6 $16) 27. Bxf3 $18 {[%emt 0:00:11]} bxc5 {[%emt 0:00:05]} 28. Bb7 {[%emt 0:05:15] A strong pair of Bishops.} Rb8 {[%emt 0:00:06]} 29. Bxb8 {[%emt 0:03:05]} Rxb8 {[%emt 0:00:03]} 30. dxc5 {[%emt 0:00:18]} Nxc5 {[%emt 0:01:29] [#]} 31. Qb5 {[%emt 0:01:40]} ({Don't take} 31. a6 $6 Nxa6 32. Rc8+ Rxc8 33. Bxc8 Nc5 $16) 31... Nxb7 {[%emt 0:02:55]} 32. a6 {[%emt 0:00:30][%cal Oc1b1,Ba5a6,Ba6b7][%mdl 32] Hoping for Rb1!} e5 $2 {[%emt 0:12:45]} (32... Nfd6 $2 33. Rxd6 Qxd6 34. axb7 $18) (32... Kh7 {is tougher.} 33. Rb1 (33. axb7 Rxb7 34. Qc6 h5 $16) 33... Nfd6 34. Qd3+ f5) 33. Rb1 {[%emt 0:07:06] White is clearly winning.} ({Less strong is} 33. axb7 Rxb7 34. Qd5 Kh7 $18) 33... Nd4 {[%emt 0:02:00]} 34. Qb4 {[%emt 0:01:23][%mdl 64] Pin} Qc7 {[%emt 0:02:13]} 35. axb7 {[%emt 0:01:17]} Qc2 {[%emt 0:01:31]} 36. Qb2 {[%emt 0:02:20]} Qg6 {[%emt 0:00:56]} 37. Rdc1 {[%emt 0:01:24] And now Rc8+ would win.} Nf3+ {[%emt 0:00:18]} 38. Kh1 {[%emt 0:00:37] Rc8+ is the strong threat.} Nh4 {[%emt 0:00:25]} 39. Rc8+ {[%emt 0:00:59]} (39. Qxe5 $2 Qxg2#) 39... Kh7 {[%emt 0:00:01]} 40. Rg1 {[%emt 0:00:55] Excellently played by Donchenko!   Weighted Error Value: White=0.08 (flawless) /Black=0.31} (40. Rxb8 $2 Qxg2#) 1-0

[Event "85th Tata Steel Challengers 2023"]
[Site "Wijk aan Zee"]
[Date "2023.01.27"]
[Round "11.2"]
[White "Pechac, Jergus"]
[Black "Yilmaz, Mustafa"]
[Result "1/2-1/2"]
[ECO "B22"]
[WhiteElo "2637"]
[BlackElo "2609"]
[Annotator "TA"]
[PlyCount "62"]
[EventDate "2023.01.10"]
[EventType "tourn"]
[EventCountry "NED"]
[SourceTitle "playchess.com"]
[Source "ChessBase"]
[SourceQuality "1"]
[TimeControl "40/6000+30:30/3000+30:900+30"]

{[%evp 9,62,2,10,8,7,0,10,0,0,0,0,0,4,0,0,0,0,0,14,-3,0,-4,-4,-2,-2,-4,-3,-2,0,-15,0,0,0,0,0,0,0,0,0,0,0,0,0,0,0,0,0,0,0,0,8,0,0,0,8]} 1. e4 {[%emt 0:00:11]} c5 {[%emt 0:00:16]} 2. c3 {[%emt 0:00:19]} Nf6 {[%emt 0:00:07]} 3. e5 {[%emt 0:00:06]} Nd5 {[%emt 0:00:03]} 4. Nf3 {[%emt 0:00:58]} d6 {[%emt 0:02:12]} 5. Bb5+ {[%emt 0:04:14]} Bd7 {[%emt 0:03:59] The position is equal.} 6. Bc4 {[%emt 0:04:35] B22: Sicilian: 2 c3.} e6 {[%emt 0:09:59]} 7. d4 {[%emt 0:02:05]} cxd4 {[%emt 0:04:01]} 8. Bxd5 {[%emt 0:02:37]} ({Much weaker is} 8. Qxd4 Nc6 9. Qe4 dxe5 10. Nxe5 Nf6 $15) 8... exd5 {[%emt 0:00:08]} 9. O-O {[%emt 0:00:06] [#]} dxe5 $146 {[%emt 0:26:33]} ({Predecessor:} 9... Be6 10. Nxd4 dxe5 11. Nxe6 fxe6 12. Qh5+ Kd7 13. c4 d4 14. Qxe5 Nc6 15. Qb5 Qb6 {1-0 Blomqvist,E (2544)-Nandhidhaa,P (2358) Rilton Cup 50th 2022 (6)}) 10. Nxe5 {[%emt 0:00:58]} Be7 {[%emt 0:07:43]} 11. Nxd7 {[%emt 0:26:52]} Qxd7 {[%emt 0:00:51]} 12. Qxd4 {[%emt 0:00:15]} O-O {[%emt 0:00:43]} 13. Rd1 {[%emt 0:02:33]} Rd8 {[%emt 0:01:53]} 14. Be3 {[%emt 0:00:23]} Qb5 {[%emt 0:07:08]} 15. c4 {[%emt 0:16:40]} Qxc4 {[%emt 0:00:56]} 16. Qxc4 {[%emt 0:00:05]} dxc4 {[%emt 0:00:03][%cal Rd8d1]} 17. Rxd8+ {[%emt 0:00:08]} Bxd8 {[%emt 0:00:03]} 18. Na3 {[%emt 0:00:07] [#]} c3 $1 {[%emt 0:10:44]} 19. Rc1 {[%emt 0:02:22]} (19. bxc3 Nc6) 19... Bf6 {[%emt 0:03:32]} (19... cxb2 $2 20. Rc8 Kf8 21. Rxd8+ Ke7 22. Rh8 $18) 20. Nb5 {[%emt 0:01:53] aiming for Nc7.} Nc6 {[%emt 0:01:23]} 21. Nxc3 {[%emt 0:00:29]} Rd8 {[%emt 0:02:21]} 22. Kf1 {[%emt 0:01:56]} Bd4 {[%emt 0:02:07]} 23. Bxd4 {[%emt 0:00:11]} Rxd4 {[%emt 0:00:10]} 24. Rd1 {[%emt 0:00:23]} Rxd1+ {[%emt 0:00:07]} 25. Nxd1 $11 {[%emt 0:00:03][%mdl 4096] Endgame KN-KN} Kf8 {[%emt 0:00:06]} 26. Ke2 {[%emt 0:00:03]} Ke7 {[%emt 0:00:05]} 27. Nc3 {[%emt 0:00:09]} h6 {[%emt 0:01:17]} 28. h3 {[%emt 0:00:05]} Kd6 {[%emt 0:00:25]} 29. Kd3 {[%emt 0:00:05]} Ne5+ {[%emt 0:00:21]} 30. Kd4 {[%emt 0:00:06] Threatens to win with Ne4+.} Nc6+ {[%emt 0:00:05]} 31. Kd3 {[%emt 0:00:04]} Ne5+ {[%emt 0:00:05] A rather calm draw.   Weighted Error Value: White=0.03 (flawless) /Black=0.03 (flawless)} 1/2-1/2

[Event "85th Tata Steel Challengers 2023"]
[Site "Wijk aan Zee"]
[Date "2023.01.27"]
[Round "11.3"]
[White "Sindarov, Javokhir"]
[Black "Warmerdam, Max"]
[Result "1/2-1/2"]
[ECO "B55"]
[WhiteElo "2654"]
[BlackElo "2616"]
[Annotator "TA"]
[PlyCount "80"]
[EventDate "2023.01.10"]
[EventType "tourn"]
[EventCountry "NED"]
[SourceTitle "playchess.com"]
[Source "ChessBase"]
[SourceQuality "1"]
[TimeControl "40/6000+30:30/3000+30:900+30"]

{[%evp 9,80,3,8,4,10,8,9,20,18,8,10,12,20,11,19,14,23,8,22,0,10,13,15,12,12,0,0,0,0,0,17,0,0,0,0,0,4,0,2,0,0,0,3,4,4,0,0,0,11,0,0,0,0,0,6,0,6,0,0,0,0,0,0,0,0,0,0,0,0,0,0,0,0]} 1. e4 {[%emt 0:00:09]} c5 {[%emt 0:00:05]} 2. Nf3 {[%emt 0:01:11]} d6 {[%emt 0:00:06]} 3. d4 {[%emt 0:01:54]} cxd4 {[%emt 0:00:07]} 4. Nxd4 {[%emt 0:00:29]} Nf6 {[%emt 0:00:07]} 5. Bd3 {[%emt 0:01:24]} Nc6 {[%emt 0:11:41]} 6. Ne2 {[%emt 0:02:46] B55: Sicilian: 2...d6 3 d4 cxd4 4 Nxd4 Nf6 5 f3.} e6 {[%emt 0:05:57]} 7. O-O {[%emt 0:00:47]} Be7 {[%emt 0:01:14]} 8. c4 {[%emt 0:01:51] [#]} d5 $146 {[%emt 0:01:30]} ({Predecessor:} 8... Qc7 9. Nbc3 a6 10. b3 Rb8 11. Bf4 Nd7 12. Rc1 Nde5 13. Kh1 Bd7 14. Bg3 Qa5 {1-0 Pomar,M (1845)-Gieseler,R (1966) Catarinense-ch 2008 (2.10)}) 9. cxd5 {[%emt 0:07:46]} exd5 {[%emt 0:00:12]} 10. exd5 {[%emt 0:00:08]} Nxd5 {[%emt 0:01:17]} 11. Nbc3 {[%emt 0:02:28]} Nxc3 {[%emt 0:11:46]} 12. Nxc3 {[%emt 0:00:10]} Be6 {[%emt 0:00:07]} 13. Qc2 {[%emt 0:09:03]} Qa5 {[%emt 0:06:46] The position is equal.} 14. Be4 {[%emt 0:10:10]} Rd8 {[%emt 0:12:59]} 15. Be3 {[%emt 0:02:57]} h6 {[%emt 0:06:11]} 16. Bxc6+ {[%emt 0:01:23]} bxc6 {[%emt 0:00:07]} 17. Qa4 {[%emt 0:00:06]} Qxa4 {[%emt 0:03:14]} 18. Nxa4 {[%emt 0:00:17]} O-O {[%emt 0:02:54]} 19. b3 {[%emt 0:01:41]} Rd7 {[%emt 0:04:35]} 20. Bc5 {[%emt 0:18:20]} Bxc5 {[%emt 0:01:30]} 21. Nxc5 {[%emt 0:00:38]} Rd2 {[%emt 0:00:13]} 22. Ne4 {[%emt 0:01:38]} Rd4 {[%emt 0:00:35]} 23. f3 {[%emt 0:03:36]} Rfd8 {[%emt 0:11:52]} 24. Rae1 {[%emt 0:14:43]} Bf5 {[%emt 0:02:46]} 25. Nc3 {[%emt 0:04:06]} Bd3 {[%emt 0:11:44]} 26. Rf2 {[%emt 0:00:15]} c5 {[%emt 0:01:18]} 27. Rc1 {[%emt 0:05:20]} a5 {[%emt 0:00:52]} 28. Rb2 {[%emt 0:04:24]} c4 {[%emt 0:01:27]} 29. b4 {[%emt 0:00:48]} axb4 {[%emt 0:00:10]} 30. Rxb4 {[%emt 0:00:04]} Bf5 {[%emt 0:00:50]} 31. a4 {[%emt 0:01:13][%cal Ba2a4,Ba4a5,Ba5a6,Ba6a7][%mdl 32]} Ra8 {[%emt 0:04:13]} 32. Ra1 {[%emt 0:02:46]} Rd2 {[%emt 0:01:30]} 33. a5 {[%emt 0:05:50] [#] Black must now prevent a6.} Rc2 $1 {[%emt 0:00:10]} 34. Nd5 {[%emt 0:04:53] aiming for Ne7+.} Be6 $1 {[%emt 0:00:41]} 35. Nf4 {[%emt 0:01:04] Nxe6 would be deadly.} c3 {[%emt 0:01:22]} 36. Nxe6 {[%emt 0:01:04]} fxe6 {[%emt 0:01:14]} 37. Rc4 {[%emt 0:00:37]} Rd8 {[%emt 0:00:31] [#] And now ...Rdd2 would win.} 38. a6 {[%emt 0:00:15] Hoping for a7.} Rdd2 {[%emt 0:00:09]} 39. a7 {[%emt 0:00:32]} Rxg2+ {[%emt 0:00:04]} 40. Kf1 {[%emt 0:00:02]} Rgf2+ {[%emt 0:00:22] An interesting draw.   Weighted Error Value: White=0.03 (flawless) /Black=0.02 (flawless)} 1/2-1/2